Cogmind - Beta 13 @@@ ROGUE MODE // 2024.04.18 @ 20:35:13 Player: Strawberry Result: Destroyed by G-73 Enforcer with Heavy Laser Performance ------------- Evolutions (7) 3500 Regions Visited (16) 3200 Robots Destroyed (41) 205 Value Destroyed (1382) 1382 Prototype IDs (9) 180 Alien Tech Used (0) 0 Bonus (1173) 1173 TOTAL SCORE: 9640 Bonus ------- High Alert Combat Kills 13 Follower Combat Kills 1229 Friendly Fire -69 Cogmind --------- Core Integrity 0/1300 Matter 186/300 Energy 180/180 System Corruption 1% Temperature Cool (36) Movement Hovering (110) Ox1 Location -3/Research Parts ------- > --- POWER (2) -------- Light Particle Reactor > --- PROPULSION (8) --- Antigrav Array > --- UTILITY (8) ------ Medium Storage Unit Enhanced Optical Array ECM Suite > --- WEAPON (3) ------- Hypervelocity Mass Driver > --- INVENTORY (10) --- (None) Peak State ------------ > --- POWER ------------ Micro Nuclear Core > --- PROPULSION ------- Myomer Leg Aerolev Unit Gravmag System Gravmag Array VTOL Module Xenon Bombardment Thruster Nuclear Pulse Thruster > --- UTILITY ---------- Enhanced Optical Array Improved Signal Interpreter Stasis Canceller Advanced Transmission Jammer Improved Cloaking Device Point Defense System Hacking Suite > --- WEAPON ----------- Phase Gun Phase Gun Hypervelocity Mass Driver > --- INVENTORY -------- Fusion Compressor Hypervelocity Mass Driver Hypervelocity Mass Driver Heavy Flail [Rating: 99] Favorites ----------- Power Micro Nuclear Core Engine Deuterium Engine Power Core Micro Nuclear Core Reactor Light Antimatter Reactor Propulsion Armored Treads Treads Armored Treads Leg Myomer Leg Hover Unit Aerolev Unit Flight Unit Nuclear Pulse Thruster Utility Hacking Suite Device Point Defense System Storage Large Storage Unit Processor Improved Signal Interpreter Hackware Hacking Suite Protection Backup Plating I Weapon Heavy Flail Energy Gun Beamcaster Energy Cannon Cooled Particle Cannon Ballistic Gun Heavy Battle Rifle Ballistic Cannon Hypervelocity Mass Driver Special Weapon Mining Laser Impact Weapon Heavy Flail Build | -11 -10 -9 -9 -8 -7 -7 -7 -6 -6 -6 -5 -5 -5 -4 -4 -3 ------- Run | Yrd Mat Mat Min Mat Fac Low Low Fac Was Fac Fac Upp Upp Fac Ext Res Slots Evolved 14 | . . 2 . 2 2 . . 2 . . 2 . . 2 . 2 Power 1 | . . . . . . . . . . . . . . . . 1 Propulsion 6 | . . 2 . 1 1 . . 1 . . 1 . . . . . Utility 6 | . . . . 1 1 . . 1 . . 1 . . 1 . 1 Weapon 1 | . . . . . . . . . . . . . . 1 . . Parts Attached 87 | 6 3 12 1 6 9 7 . 4 2 5 5 . . 2 10 15 Power 11 | 1 . 2 . . 1 . . . . . 1 . . . 3 3 Engine 3 | 1 . 2 . . . . . . . . . . . . . . Core 5 | . . . . . 1 . . . . . 1 . . . 3 . Reactor 3 | . . . . . . . . . . . . . . . . 3 Propulsion 34 | 2 . 6 . 4 6 4 . 2 . 2 2 . . . 3 3 Treads 9 | 2 . 5 . 1 1 . . . . . . . . . . . Leg 3 | . . . . . . . . . . . . . . . 1 2 Wheel . | . . . . . . . . . . . . . . . . . Hover 9 | . . 1 . 2 2 . . 2 . . . . . . 1 1 Flight 13 | . . . . 1 3 4 . . . 2 2 . . . 1 . Utility 23 | 1 2 2 . 2 1 2 . 1 . 3 2 . . 1 1 5 Device 9 | . . 1 . . . . . . . . 2 . . 1 1 4 Storage 5 | 1 2 . . . . . . . . 1 . . . . . 1 Processor 5 | . . . . 1 1 1 . 1 . 1 . . . . . . Hackware 2 | . . . . . . 1 . . . 1 . . . . . . Protection 2 | . . 1 . 1 . . . . . . . . . . . . Artifact . | . . . . . . . . . . . . . . . . . Weapon 19 | 2 1 2 1 . 1 1 . 1 2 . . . . 1 3 4 Energy Gun 9 | 2 . 1 1 . 1 . . 1 1 . . . . . 2 . Energy Cannon 1 | . . . . . . . . . 1 . . . . . . . Ballistic Gun 2 | . . . . . . 1 . . . . . . . 1 . . Ballistic Cannon 4 | . . . . . . . . . . . . . . . 1 3 Launcher . | . . . . . . . . . . . . . . . . . Special Weapon 1 | . 1 . . . . . . . . . . . . . . . Impact Weapon 2 | . . 1 . . . . . . . . . . . . . 1 Slashing Weapon . | . . . . . . . . . . . . . . . . . Piercing Weapon . | . . . . . . . . . . . . . . . . . Special Melee Weapon . | . . . . . . . . . . . . . . . . . Unidentified Prototypes 7 | . . 1 1 2 . . . 1 1 . 1 . . . . . Parts Lost 35 | . 1 1 . . 2 . . 1 . . 1 . . . 19 10 Power 4 | . . . . . . . . . . . . . . . 3 1 Propulsion 15 | . . . . . 1 . . 1 . . 1 . . . 9 3 Utility 6 | . . 1 . . . . . . . . . . . . 2 3 Weapon 10 | . 1 . . . 1 . . . . . . . . . 5 3 Highest Loss Streak 9 | . 1 1 . . 2 . . 1 . . 1 . . . 9 5 To Critical Strikes 2 | . . . . . . . . . . . . . . . 2 . Average Slot Usage (%) 89 | . 96 93 100 92 90 91 92 83 92 92 85 94 94 94 82 24 Engine 4 | . 14 11 11 9 . . . . . . . . . . . . Core 3 | . . . . . 6 7 7 6 6 6 5 5 5 5 4 . Treads 16 | . 28 32 44 33 23 2 . . . . . . . . . . Hover 6 | . . 5 . 1 5 7 7 7 13 13 11 11 11 10 10 1 Flight 13 | . . . . 3 13 27 30 26 26 25 26 29 29 26 20 1 Device 3 | . . 3 . . . . . . . . 5 11 11 15 16 2 Storage 6 | . 26 11 11 9 7 . . . . 2 . . . . . 1 Processor 8 | . . . . 6 8 21 23 22 26 17 11 11 11 10 10 5 Hackware 4 | . . . . . . 6 7 6 6 12 11 11 11 10 5 4 Protection 3 | . . 7 11 10 7 . . . . . . . . . . . Energy Gun 8 | . 20 11 11 9 7 7 7 5 5 6 5 5 5 5 4 . Energy Cannon 1 | . . . . . . . . . 5 6 5 5 5 5 1 . Special Weapon 1 | . 5 7 . . . . . . . . . . . . . . Impact Weapon 3 | . . 3 11 9 7 3 . . . . . . . . . . Naked Turns . | . . . . . . . . . . . . . . . . . Heaviest Build 98 | 12 28 36 36 46 45 42 13 13 18 98 22 22 22 27 38 41 Greatest Support 80 | 40 40 80 80 80 60 60 18 28 18 22 28 28 28 28 37 28 Greatest Overweight (x) 7 | . . . . 7 . . . 1 . 4 . . . . 3 4 Average Overweight (x) . | . . . . . . . . . . . . . . . . . Largest Inventory Capacity 25 | 8 15 15 15 15 15 15 5 5 5 25 25 5 5 5 5 10 Average Capacity 10 | 6 11 15 15 15 15 6 5 5 5 13 5 5 5 5 5 6 Most Carried 15 | 4 10 15 15 15 15 15 5 5 5 6 5 5 5 4 5 5 Average Carried 8 | 2 6 13 14 14 13 6 5 4 4 5 5 5 5 4 4 2 Final Capacity 25 | 8 15 15 15 15 15 5 5 5 5 25 5 5 5 5 5 10 Final Carried 15 | 4 10 15 15 14 14 5 5 5 5 6 5 5 5 4 4 . Class Distribution -------------------- 54% | Mutant 20% | Hacker-Sprinter 12% | Sprinter 4% | Hacker-Mutant 3% | Infiltrator-Tank Dominant Class ---------------- Mutant | -10/Materials Mutant | -9/Materials Mutant | -9/Mines Mutant | -8/Materials Mutant | -7/Factory Sprinter | -7/Lower Caves Sprinter | -7/Lower Caves Sprinter | -6/Factory Sprinter | -6/Waste Hacker-Sprinter | -6/Factory Hacker-Sprinter | -5/Factory Hacker-Sprinter | -5/Upper Caves Hacker-Sprinter | -5/Upper Caves Hacker-Sprinter | -4/Factory Infiltrator-Tank | -4/Extension Mutant | -3/Research Resources | -11 -10 -9 -9 -8 -7 -7 -7 -6 -6 -6 -5 -5 -5 -4 -4 -3 ----------- Run | Yrd Mat Mat Min Mat Fac Low Low Fac Was Fac Fac Upp Upp Fac Ext Res Matter Collected 1099 | 260 22 115 10 60 97 95 . 10 60 20 76 14 . . 85 175 Remotely . | . . . . . . . . . . . . . . . . . Salvage Created 1341 | . 65 212 97 258 217 167 . . . 100 13 29 . . 76 107 Parts 68 | . 6 12 2 5 12 12 . . . 5 1 2 . . 5 6 Haulers Intercepted . | . . . . . . . . . . . . . . . . . Recyclers Shooed 1 | . . 1 . . . . . . . . . . . . . . Parts Field Recycled . | . . . . . . . . . . . . . . . . . Retrieved Matter . | . . . . . . . . . . . . . . . . . Parts Self-Destructed 28 | . . . . . . 12 . . . . . 16 . . . . Prevented 6 | . . . . . . . . . . . . 6 . . . . Kills | -11 -10 -9 -9 -8 -7 -7 -7 -6 -6 -6 -5 -5 -5 -4 -4 -3 ------- Run | Yrd Mat Mat Min Mat Fac Low Low Fac Was Fac Fac Upp Upp Fac Ext Res Combat Hostiles Destroyed 37 | . 3 10 3 5 4 4 . . . 2 . 1 . . 2 3 Melee 2 | . . . 1 1 . . . . . . . . . . . . Guns 21 | . 3 7 . 1 4 4 . . . . . 1 . . 1 . Cannons 8 | . . 2 . . . . . . . 2 . . . . 1 3 Classes Destroyed 8 | . 2 2 1 1 . . . . . . 1 . . . 1 . Worker 1 | . . . . . . . . . . . 1 . . . . . Builder 1 | . . . . . . . . . . . . . . . 1 . Tunneler 2 | . 1 . . 1 . . . . . . . . . . . . Swarmer 16 | . 3 6 . . . 2 . . . . . 1 . . 2 2 Grunt 13 | . . 3 2 2 3 1 . . . 1 . . . . . 1 Duelist 1 | . . . 1 . . . . . . . . . . . . . Sentry 6 | . . 1 . 2 1 1 . . . 1 . . . . . . Hunter 1 | . . . . 1 . . . . . . . . . . . . Best Kill Streak 4 | . 4 3 2 2 4 2 . . . 1 1 1 . . 1 3 Combat Bots Only 4 | . 3 3 2 2 4 2 . . . 1 . 1 . . 1 3 Max Kills in Single Turn 1 | . 1 1 1 1 1 1 . . . 1 1 1 . . 1 1 Gunslinging . | . . . . . . . . . . . . . . . . . Exploded . | . . . . . . . . . . . . . . . . . Melee 1 | . . . 1 1 . . . . . . . . . . . . Uniques/NPCs Destroyed . | . . . . . . . . . . . . . . . . . Combat | -11 -10 -9 -9 -8 -7 -7 -7 -6 -6 -6 -5 -5 -5 -4 -4 -3 -------- Run | Yrd Mat Mat Min Mat Fac Low Low Fac Was Fac Fac Upp Upp Fac Ext Res Hostile Shots Fired 604 | . 19 78 21 39 93 52 . . . 3 . . . 12 126 161 Missed 180 | . 5 24 3 9 28 22 . . . 1 . . . 5 42 41 Damage Taken 7169 | . 164 558 265 412 668 338 . . . 125 . . . 175 1681 2783 Core 1749 | . 18 60 12 75 48 55 . . . 36 . . . . 137 1308 Absorbed by Shields 31 | . . . . . . . . . . . . . . . 31 . Ignored by Resistances 172 | . . . . 60 33 79 . . . . . . . . . . Regen/Repaired (Parts) 305 | . . 11 . 170 . . . . 43 16 13 . . 52 . . Core Remaining (%) 91 | 100 92 . 82 86 . . 85 . . 95 . . 100 . 88 . Volleys Fired 148 | . 12 37 7 4 22 16 . . 6 7 4 2 . 5 10 16 Largest 3 | . 2 2 1 1 1 2 . . 2 2 2 2 . 3 3 1 Hottest 150 | . 100 150 55 45 55 88 . . 105 105 105 105 . 138 138 66 Shots Fired 198 | . 13 45 7 4 22 21 . . 12 14 8 4 . 13 19 16 Gun 146 | . 10 36 7 4 22 21 . . 6 7 4 2 . 9 18 . Cannon 40 | . . . . . . . . . 6 7 4 2 . 4 1 16 Launcher . | . . . . . . . . . . . . . . . . . Special 12 | . 3 9 . . . . . . . . . . . . . . Kinetic 36 | . . . . . . 5 . . . . . . . 5 10 16 Thermal 146 | . 12 45 7 . 11 16 . . 12 14 8 4 . 8 9 . Explosive . | . . . . . . . . . . . . . . . . . Electromagnetic 16 | . 1 . . 4 11 . . . . . . . . . . . Robot Hit Streak 17 | . 2 12 13 8 17 6 . . 6 7 3 3 . 1 1 6 Robot Miss Streak 6 | . 2 6 2 . 2 3 . . 4 2 1 . . 4 5 2 Penetration Max . | . . . . . . . . . . . . . . . . . Secondary Targets . | . . . . . . . . . . . . . . . . . Shots Hit Robots 124 | . 5 25 9 10 19 15 . . 6 8 5 3 . 2 6 11 Core Hits 59 | . 4 10 1 3 11 8 . . . 5 2 2 . 1 4 8 Critical Kills 1 | . . . 1 . . . . . . . . . . . . . Critical Parts Destroyed 5 | . . 2 1 2 . . . . . . . . . . . . Critical Strikes 12 | . 1 2 2 2 . 1 . . 1 1 . . . . . 2 Burn 4 | . 1 . . . . 1 . . 1 1 . . . . . . Destroy 1 | . . . . . . . . . . . . . . . . 1 Blast 1 | . . . . . . . . . . . . . . . . 1 Smash 6 | . . 2 2 2 . . . . . . . . . . . . Melee Attacks 24 | . . 4 9 11 . . . . . . . . . . . . Impact 24 | . . 4 9 11 . . . . . . . . . . . . Slashing . | . . . . . . . . . . . . . . . . . Piercing . | . . . . . . . . . . . . . . . . . Sneak Attacks 1 | . . . . 1 . . . . . . . . . . . . Combat Hostiles . | . . . . . . . . . . . . . . . . . Follow-up Attacks . | . . . . . . . . . . . . . . . . . Damage Inflicted 3351 | . 76 562 360 462 367 286 . . 170 214 140 69 . 47 218 380 Guns 1666 | . 74 338 77 65 367 286 . . 62 106 60 41 . 21 169 . Cannons 705 | . . . . . . . . . 108 108 80 28 . 26 26 329 Explosions . | . . . . . . . . . . . . . . . . . Melee 815 | . . 139 279 397 . . . . . . . . . . . . Ramming 93 | . 2 13 4 . . . . . . . . . . . 23 51 Kinetic 534 | . . . . . . 101 . . . . . . . 21 83 329 Thermal 1638 | . 74 410 77 . 161 185 . . 170 214 140 69 . 26 112 . Explosive . | . . . . . . . . . . . . . . . . . Electromagnetic 271 | . . . . 65 206 . . . . . . . . . . . Impact 815 | . . 139 279 397 . . . . . . . . . . . . Slashing . | . . . . . . . . . . . . . . . . . Piercing . | . . . . . . . . . . . . . . . . . Highest Corruption 6 | . . . . . . . . . . . . . . . 6 1 Average Corruption 2 | . . . . . . . . . . . . . . . 3 1 Corruption Purged . | . . . . . . . . . . . . . . . . . Corruption Blocked . | . . . . . . . . . . . . . . . . . Effects 6 | . . . . . . . . . . . . . . . 5 1 Matter Fused 3 | . . . . . . . . . . . . . . . 3 . Heat Flow Errors 2 | . . . . . . . . . . . . . . . 2 . Data Loss (major) 1 | . . . . . . . . . . . . . . . . 1 Overload Shots . | . . . . . . . . . . . . . . . . . Overflow Damage 443 | . . 96 65 275 . . . . . 7 . . . . . . Projectiles 7 | . . . . . . . . . . 7 . . . . . . Explosions . | . . . . . . . . . . . . . . . . . Melee 436 | . . 96 65 275 . . . . . . . . . . . . Knockbacks 7 | . . . . 3 . . . . . . . . . . . 4 Impact 3 | . . . . 3 . . . . . . . . . . . . Kinetic 3 | . . . . . . . . . . . . . . . . 3 Secondary 1 | . . . . . . . . . . . . . . . . 1 Self-Inflicted Damage 26 | . . . . . . . . . . . . . . . 11 15 Shots . | . . . . . . . . . . . . . . . . . Rammed 12 | . 1 2 1 . . . . . . . . . . . 2 6 Targets Rammed 17 | . 1 2 1 . . . . . . . . . . . 2 11 Kicked 5 | . . . . . . . . . . . . . . . . 5 Crushed . | . . . . . . . . . . . . . . . . . Highest Temperature 388 | . 80 210 120 45 388 116 . . 90 45 90 46 . 219 246 20 Average Temperature 71 | . 34 65 58 24 194 58 . . 37 20 33 25 . 126 56 9 Received Heat Transfer 1474 | . . 114 90 144 327 33 . . . 9 . . . 9 249 499 Effects 5 | . . . . . 2 . . . . . . . . 3 . . Energy Bleed 1 | . . . . . 1 . . . . . . . . . . . Interference 3 | . . . . . . . . . . . . . . 3 . . Matter Decay 1 | . . . . . 1 . . . . . . . . . . . Siege Activations . | . . . . . . . . . . . . . . . . . Robots Corrupted . | . . . . . . . . . . . . . . . . . Combat Hostiles . | . . . . . . . . . . . . . . . . . Parts Fried 8 | . . . 1 7 . . . . . . . . . . . . Impact Corruptions 15 | . . 3 2 10 . . . . . . . . . . . . Robots Melted . | . . . . . . . . . . . . . . . . . Combat Hostiles . | . . . . . . . . . . . . . . . . . Parts Melted 3 | . . . 1 . 2 . . . . . . . . . . . Heat Transferred 3406 | . 296 927 148 . 296 444 . . 333 407 222 111 . 37 185 . Parts Sabotaged . | . . . . . . . . . . . . . . . . . Parts Stolen . | . . . . . . . . . . . . . . . . . Parts Stripped . | . . . . . . . . . . . . . . . . . Power Chain Reactions . | . . . . . . . . . . . . . . . . . Alert | -11 -10 -9 -9 -8 -7 -7 -7 -6 -6 -6 -5 -5 -5 -4 -4 -3 ------- Run | Yrd Mat Mat Min Mat Fac Low Low Fac Was Fac Fac Upp Upp Fac Ext Res Peak Influence 1080 | . 107 195 104 175 124 . . 155 133 954 1080 . . 351 422 116 Initial 466 | . . . 34 . 24 . . . 54 93 466 . . 351 104 79 Average 146 | . 40 60 49 55 61 . . 73 105 320 703 . . 253 254 81 Maximum Alert Level 3 | . . . . . . . . . . 3 3 . . 1 2 . Low Security (%) 80 | 100 100 100 100 100 100 . . 100 100 54 . . . 1 35 100 Level 1 8 | . . . . . . . . . . 3 . . . 98 50 . Level 2 8 | . . . . . . . . . . 32 70 . . . 14 . Level 3 2 | . . . . . . . . . . 9 29 . . . . . Level 4 . | . . . . . . . . . . . . . . . . . Level 5 . | . . . . . . . . . . . . . . . . . High Security . | . . . . . . . . . . . . . . . . . Max Security . | . . . . . . . . . . . . . . . . . Squads Dispatched 15 | . . 1 . 1 3 . . 1 . 5 1 . . 1 1 1 Investigation 6 | . . . . 1 1 . . 1 . 1 1 . . . 1 . Extermination 2 | . . . . . 1 . . . . 1 . . . . . . Reinforcement 5 | . . 1 . . . . . . . 2 . . . 1 . 1 Assault 1 | . . . . . . . . . . 1 . . . . . . Garrison 1 | . . . . . 1 . . . . . . . . . . . Intercept . | . . . . . . . . . . . . . . . . . Searches Triggered . | . . . . . . . . . . . . . . . . . Construction Impeded . | . . . . . . . . . . . . . . . . . Haulers Reinforced 1 | . . . . . . . . . . 1 . . . . . . Active Scanning Responses . | . . . . . . . . . . . . . . . . . Cargo Convoy Interrupts . | . . . . . . . . . . . . . . . . . Stealth | -11 -10 -9 -9 -8 -7 -7 -7 -6 -6 -6 -5 -5 -5 -4 -4 -3 --------- Run | Yrd Mat Mat Min Mat Fac Low Low Fac Was Fac Fac Upp Upp Fac Ext Res Distress Signals 5 | . 1 1 . 2 . . . . . . . . . . 1 . Communications Jammed . | . . . . . . . . . . . . . . . . . Distress Signals . | . . . . . . . . . . . . . . . . . Times Spotted 138 | . 9 19 3 11 8 7 . 5 6 17 4 5 . 3 27 14 Peak Tracking Total 10 | . 5 5 3 4 4 3 . 4 3 5 3 4 . 2 8 10 Tactical Retreats 19 | . 1 3 . 1 . 1 . 2 . . . . . . 10 1 Traps | -11 -10 -9 -9 -8 -7 -7 -7 -6 -6 -6 -5 -5 -5 -4 -4 -3 ------- Run | Yrd Mat Mat Min Mat Fac Low Low Fac Was Fac Fac Upp Upp Fac Ext Res Traps Triggered 11 | . 1 1 . . 1 . . 1 . . . . . . 6 1 Indirectly . | . . . . . . . . . . . . . . . . . Trap Hack Attempts . | . . . . . . . . . . . . . . . . . Triggered . | . . . . . . . . . . . . . . . . . Disarmed . | . . . . . . . . . . . . . . . . . Reprogrammed . | . . . . . . . . . . . . . . . . . Reused . | . . . . . . . . . . . . . . . . . Traps Extracted . | . . . . . . . . . . . . . . . . . Installed . | . . . . . . . . . . . . . . . . . Triggered 1 | . . . . . . . . . . . . 1 . . . . Machines | -11 -10 -9 -9 -8 -7 -7 -7 -6 -6 -6 -5 -5 -5 -4 -4 -3 ---------- Run | Yrd Mat Mat Min Mat Fac Low Low Fac Was Fac Fac Upp Upp Fac Ext Res Machines Disabled 7 | . . 1 . . . . . . . 6 . . . . . . Max in Single Turn 1 | . . 1 . . . . . . . . . . . . . . Garrison Access 2 | . . . . . 1 . . . . . . . . 1 . . Machines Repaired . | . . . . . . . . . . . . . . . . . Machines Dismantled . | . . . . . . . . . . . . . . . . . Machines Sabotaged . | . . . . . . . . . . . . . . . . . Overloaded Fab Kills . | . . . . . . . . . . . . . . . . . Hacking | -11 -10 -9 -9 -8 -7 -7 -7 -6 -6 -6 -5 -5 -5 -4 -4 -3 --------- Run | Yrd Mat Mat Min Mat Fac Low Low Fac Was Fac Fac Upp Upp Fac Ext Res Machines Accessed 28 | . 5 2 . 3 3 . . 6 . 2 3 . . 3 1 . Terminals 18 | . 3 1 . 2 2 . . 5 . 1 1 . . 2 1 . Fabricators 2 | . . . . . . . . 1 . . 1 . . . . . Repair Stations 3 | . . 1 . 1 . . . . . . 1 . . . . . Recycling Units 3 | . 2 . . . . . . . . 1 . . . . . . Scanalyzers . | . . . . . . . . . . . . . . . . . Garrison Access 2 | . . . . . 1 . . . . . . . . 1 . . Total Hacks 62 | . 16 4 . 11 5 . . 8 . 4 7 . . 5 2 . Successful 34 | . 10 3 . 6 2 . . 3 . 2 5 . . 3 . . Failed 28 | . 6 1 . 5 3 . . 5 . 2 2 . . 2 2 . Catastrophic 5 | . 2 1 . . . . . 1 . . . . . . 1 . Database Lockouts . | . . . . . . . . . . . . . . . . . Manual 20 | . 4 1 . 5 . . . 5 . 3 . . . 2 . . Terminals 40 | . 10 2 . 6 4 . . 7 . 3 3 . . 3 2 . Fabricators 3 | . . . . . . . . 1 . . 2 . . . . . Repair Stations 9 | . . 2 . 5 . . . . . . 2 . . . . . Recycling Units 7 | . 6 . . . . . . . . 1 . . . . . . Scanalyzers . | . . . . . . . . . . . . . . . . . Garrison Access 3 | . . . . . 1 . . . . . . . . 2 . . Terminal Hacks 17 | . 7 1 . 2 1 . . 2 . 1 1 . . 2 . . Record 1 | . . . . . . . . 1 . . . . . . . . Prototype ID Bank 1 | . 1 . . . . . . . . . . . . . . . Open DSF 4 | . . . . . 1 . . 1 . . 1 . . 1 . . Emergency Access Points 1 | . 1 . . . . . . . . . . . . . . . Unreport Threat 1 | . . . . . . . . . . . . . . 1 . . Locate Traps 1 | . 1 . . . . . . . . . . . . . . . Dispatch Records 1 | . 1 . . . . . . . . . . . . . . . Transport Status 1 | . 1 . . . . . . . . . . . . . . . Hauler Manifests 3 | . 1 . . 1 . . . . . 1 . . . . . . Zone Layout 3 | . 1 1 . 1 . . . . . . . . . . . . Fabricator Hacks 2 | . . . . . . . . . . . 2 . . . . . Load Schematic 1 | . . . . . . . . . . . 1 . . . . . Build 1 | . . . . . . . . . . . 1 . . . . . Repair Station Hacks 8 | . . 2 . 4 . . . . . . 2 . . . . . Scan Component 4 | . . 1 . 2 . . . . . . 1 . . . . . Repair 4 | . . 1 . 2 . . . . . . 1 . . . . . Recycling Unit Hacks 3 | . 2 . . . . . . . . 1 . . . . . . Report Inventory 2 | . 1 . . . . . . . . 1 . . . . . . Retrieve Components 1 | . 1 . . . . . . . . . . . . . . . Scanalyzer . | . . . . . . . . . . . . . . . . . Garrison Access Hacks 2 | . . . . . 1 . . . . . . . . 1 . . Seal Access 2 | . . . . . 1 . . . . . . . . 1 . . Unauthorized Hacks 2 | . 1 . . . . . . 1 . . . . . . . . Terminals . | . . . . . . . . . . . . . . . . . Fabricators 1 | . . . . . . . . 1 . . . . . . . . Download 1 | . . . . . . . . 1 . . . . . . . . Repair Stations . | . . . . . . . . . . . . . . . . . Recycling Units 1 | . 1 . . . . . . . . . . . . . . . Monitor 1 | . 1 . . . . . . . . . . . . . . . Scanalyzers . | . . . . . . . . . . . . . . . . . Garrison Access . | . . . . . . . . . . . . . . . . . Data Cores Recovered . | . . . . . . . . . . . . . . . . . Used . | . . . . . . . . . . . . . . . . . Hacking Detections 20 | . 5 1 . 2 2 . . 5 . 1 1 . . 2 1 . Full Trace Events 4 | . . . . 1 . . . . . 1 1 . . . 1 . Feedback Events 1 | . . . . . . . . . . . . . . . 1 . Corruption 1 | . . . . . . . . . . . . . . . 1 . Feedback Blocked . | . . . . . . . . . . . . . . . . . Robot Schematics Acquired . | . . . . . . . . . . . . . . . . . Robots Built . | . . . . . . . . . . . . . . . . . Authchips . | . . . . . . . . . . . . . . . . . Time . | . . . . . . . . . . . . . . . . . Total Robot Build Rating . | . . . . . . . . . . . . . . . . . Part Schematics Acquired 1 | . . . . . . . . 1 . . . . . . . . Parts Built 1 | . . . . . . . . . . . 1 . . . . . Authchips . | . . . . . . . . . . . . . . . . . Time 58 | . . . . . . . . . . . 58 . . . . . Total Part Build Rating 7 | . . . . . . . . . . . 7 . . . . . Parts Repaired 3 | . . 1 . 1 . . . . . . 1 . . . . . Time 134 | . . 26 . 76 . . . . . . 32 . . . . . Parts Recycled . | . . . . . . . . . . . . . . . . . Recycled Matter . | . . . . . . . . . . . . . . . . . Retrieved Matter . | . . . . . . . . . . . . . . . . . Retrieved Components 2 | . 2 . . . . . . . . . . . . . . . Parts Scanalyzed . | . . . . . . . . . . . . . . . . . Part Schematics Acquired . | . . . . . . . . . . . . . . . . . Parts Damaged . | . . . . . . . . . . . . . . . . . Bothacking | -11 -10 -9 -9 -8 -7 -7 -7 -6 -6 -6 -5 -5 -5 -4 -4 -3 ------------ Run | Yrd Mat Mat Min Mat Fac Low Low Fac Was Fac Fac Upp Upp Fac Ext Res Used RIF Installer . | . . . . . . . . . . . . . . . . . Robots Hacked . | . . . . . . . . . . . . . . . . . Non-combat . | . . . . . . . . . . . . . . . . . Combat . | . . . . . . . . . . . . . . . . . Robot Hacks Applied . | . . . . . . . . . . . . . . . . . Relay Couplers Released . | . . . . . . . . . . . . . . . . . Fabnet Peak Effective % . | . . . . . . . . . . . . . . . . . Robots Rewired . | . . . . . . . . . . . . . . . . . Allies Hacked . | . . . . . . . . . . . . . . . . . Hacks Repelled . | . . . . . . . . . . . . . . . . . Allies | -11 -10 -9 -9 -8 -7 -7 -7 -6 -6 -6 -5 -5 -5 -4 -4 -3 -------- Run | Yrd Mat Mat Min Mat Fac Low Low Fac Was Fac Fac Upp Upp Fac Ext Res Total Allies 20 | . . . . . . . . . 20 . . . . . . . Largest Group 20 | . . . . . . . . . 20 17 15 11 7 7 2 . Highest-Rated Group 715 | . . . . . . . . . 715 630 559 418 263 263 67 . Highest-Rated Ally 50 | . . . . . . . . . 50 50 50 46 46 46 46 . Total Orders . | . . . . . . . . . . . . . . . . . Ally Attacks 304 | . . . . . . . . . 124 89 35 33 . 14 9 . Total Damage 10543 | . . . . . . . . . 4066 3039 1941 903 . 352 242 . Kills 57 | . . . . . . . . . 9 23 15 6 . 2 2 . Allies Corrupted 1 | . . . . . . . . . . . . . . 1 . . Allies Melted . | . . . . . . . . . . . . . . . . . Intel | -11 -10 -9 -9 -8 -7 -7 -7 -6 -6 -6 -5 -5 -5 -4 -4 -3 ------- Run | Yrd Mat Mat Min Mat Fac Low Low Fac Was Fac Fac Upp Upp Fac Ext Res Robot Analysis Total . | . . . . . . . . . . . . . . . . . Derelict Logs Recovered 6 | . . . 3 . . 1 . . . . . 2 . . . . Drone Launches . | . . . . . . . . . . . . . . . . . Drone Recoveries . | . . . . . . . . . . . . . . . . . Exploration | -11 -10 -9 -9 -8 -7 -7 -7 -6 -6 -6 -5 -5 -5 -4 -4 -3 ------------- Run | Yrd Mat Mat Min Mat Fac Low Low Fac Was Fac Fac Upp Upp Fac Ext Res Turns Passed 6233 | 84 466 851 672 607 417 453 11 214 152 536 296 535 78 157 474 230 Spaces Moved 5340 | 50 262 388 370 277 211 988 37 590 208 423 283 276 25 156 628 168 Core 56 | 7 . . . . . . . . . . . . . . . 49 Treads 1561 | 43 262 388 370 274 211 13 . . . . . . . . . . Legs 58 | . . . . . . . . . . . . . . . 4 54 Wheels . | . . . . . . . . . . . . . . . . . Hover 254 | . . . . 3 . . . 32 . . . . . 34 139 46 Flight 3411 | . . . . . . 975 37 558 208 423 283 276 25 122 485 19 Fastest Speed 26 | 50 160 160 170 170 170 29 29 29 29 29 27 27 27 27 26 40 Average Speed 77 | 144 160 163 170 175 170 30 29 32 29 75 27 27 27 32 46 87 Slowest Speed 700 | 160 160 170 170 700 170 170 29 110 29 349 29 27 27 51 250 250 Overloaded Moves . | . . . . . . . . . . . . . . . . . Propulsion Burnouts . | . . . . . . . . . . . . . . . . . Robots Hopped 11 | . . . . . . 1 . 1 . 2 2 . . 2 3 . Cave-ins Triggered . | . . . . . . . . . . . . . . . . . Exploration Rate (%) 34 | 5 48 37 73 22 6 96 11 18 85 20 8 59 6 5 83 4 Regions Visited 16 Branch Regions 6 Pre-discovered Areas . | . . . . . . . . . . . . . . . . . Known Exits Taken 10 | . . . . 1 1 1 1 . . 1 1 1 1 1 1 . Unknown Exits Taken 4 | 1 1 1 1 . . . . . . . . . . . . . Scrap Searched 7 | . . . 1 . . 2 . . . . . 3 1 . . . Spaces Dug 4 | . 3 . . 1 . . . . . . . . . . . . Terrain Destroyed 12 | . 3 2 . 1 . . . . . 2 . . . . 3 1 Melee 1 | . . . . 1 . . . . . . . . . . . . Projectile 11 | . 3 2 . . . . . . . 2 . . . . 3 1 AOE . | . . . . . . . . . . . . . . . . . Terrain Rammed . | . . . . . . . . . . . . . . . . . Walls Destroyed . | . . . . . . . . . . . . . . . . . Machines Disabled . | . . . . . . . . . . . . . . . . . Actions | -11 -10 -9 -9 -8 -7 -7 -7 -6 -6 -6 -5 -5 -5 -4 -4 -3 --------- Run | Yrd Mat Mat Min Mat Fac Low Low Fac Was Fac Fac Upp Upp Fac Ext Res Total 7154 | 59 288 540 392 378 246 1114 36 610 286 628 487 731 95 249 784 231 Wait 1409 | . 5 63 3 70 . 97 . 6 68 186 196 454 71 89 83 18 Move 5304 | 49 261 387 369 276 210 985 36 588 207 418 279 275 24 151 621 168 Hop 10 | . . . . . . 1 . 1 . 2 1 . . 2 3 . Pick Up 50 | 4 6 17 1 5 3 1 . 4 1 3 . . . . 5 . Fast Attach 49 | 6 1 5 . 4 1 3 . 5 1 5 4 . . 1 4 9 Attach 22 | . 1 1 . 2 2 3 . . . . 1 . . 1 5 6 Detach 4 | . . 1 . . . 1 . . . . . . . . . 2 Swap 18 | . 1 6 1 . 6 1 . . 1 . 1 . . . 1 . Drop 53 | . . 17 1 6 2 6 . 6 2 7 1 . . . 4 1 Fire 148 | . 12 37 7 4 22 16 . . 6 7 4 2 . 5 10 16 Melee 24 | . . 4 9 11 . . . . . . . . . . . . Ram 8 | . . . . . . . . . . . . . . . 2 6 Kick 5 | . . . . . . . . . . . . . . . . 5 Crush 4 | . 1 2 1 . . . . . . . . . . . . . Escape Stasis 46 | . . . . . . . . . . . . . . . 46 . Rewire . | . . . . . . . . . . . . . . . . . Trap . | . . . . . . . . . . . . . . . . . Miscellaneous . | . . . . . . . . . . . . . . . . . Route ------- -11/Scrapyard -10/Materials (discovered 2 exits: *Mat / [*Min]) -9/Materials -9/Mines -8/Materials (discovered 2 exits: *Fac x2) -7/Factory -7/Lower Caves -7/Lower Caves -6/Factory -6/Waste -6/Factory -5/Factory -5/Upper Caves -5/Upper Caves -4/Factory (discovered 2 exits: Upp / *Ext) -4/Extension (discovered 2 exits: *Res / *Cet) -3/Research History --------- Turn | Location | Event 52 | -11/Scrapyard | Discovered new exit (range 14) 85 | -11/Scrapyard | Entered Materials 306 | -10/Materials | Build established: Mutant 316 | -10/Materials | Discovered new exit (range 8) 450 | -10/Materials | Discovered new exit (range 3) 551 | -10/Materials | Entered another Materials area 551 | -9/Materials | Evolved 2 slots: Propulsion x2 720 | -9/Materials | Repaired Signal Interpreter 1197 | -9/Materials | Discovered new exit (range 15) 1402 | -9/Materials | Entered Mines 1719 | -9/Mines | Learned location of 1 exit from Materials 1721 | -9/Mines | Learned location of 1 exit from Materials 1835 | -9/Mines | Learned location of 1 exit from Proximity Caves 1858 | -9/Mines | A weapon hastily lodged in a ceiling crevice suddenly fell to the ground 2060 | -9/Mines | Discovered new exit (range 8) 2074 | -9/Mines | Entered Materials 2074 | -8/Materials | Evolved 2 slots: Propulsion x1, Utility x1 2075 | -8/Materials | Identified exit to Factory 2581 | -8/Materials | Repaired Arm. Treads 2681 | -8/Materials | Entered Factory 2681 | -7/Factory | Evolved 2 slots: Propulsion x1, Utility x1 2917 | -7/Factory | Garrison activated, responded to threat 3010 | -7/Factory | Discovered new exit (range 14) 3056 | -7/Factory | Identified exit to Lower Caves 3098 | -7/Factory | Entered Lower Caves 3158 | -7/Lower Caves | Encountered a Warlord checkpoint 3285 | -7/Lower Caves | Attracted the attention of an 0b10 checkpoint 3368 | -7/Lower Caves | Spotted B-75 Beast 3377 | -7/Lower Caves | Learned location of 1 exit from Factory 3422 | -7/Lower Caves | Build established: Sprinter 3549 | -7/Lower Caves | Discovered new exit (range 4) 3550 | -7/Lower Caves | Identified exit to Lower Caves 3551 | -7/Lower Caves | Entered another Lower Caves area 3551 | -7/Lower Caves | Discovered new exit (range 10) 3554 | -7/Lower Caves | Identified exit to Factory 3557 | -7/Lower Caves | Encountered a Warlord checkpoint 3562 | -7/Lower Caves | Entered Factory 3562 | -6/Factory | Evolved 2 slots: Propulsion x1, Utility x1 3563 | -6/Factory | Identified exit to Factory 3776 | -6/Factory | Sucked down chute 3776 | -6/Factory | Entered Waste 3777 | -6/Waste | Met a frightened Derelict 3789 | -6/Waste | Warlord forces began an assault 3838 | -6/Waste | Spotted C-40 Crusher 3839 | -6/Waste | Spotted C-40 Crusher 3848 | -6/Waste | Spotted C-40 Crusher 3848 | -6/Waste | Allies destroyed C-40 Crusher 3849 | -6/Waste | Allies destroyed C-40 Crusher 3853 | -6/Waste | Allies destroyed C-40 Crusher 3853 | -6/Waste | Spotted C-40 Crusher 3855 | -6/Waste | Spotted C-40 Crusher 3858 | -6/Waste | Allies destroyed C-40 Crusher 3861 | -6/Waste | Allies destroyed C-40 Crusher 3866 | -6/Waste | Spotted C-40 Crusher 3877 | -6/Waste | Allies destroyed C-40 Crusher 3879 | -6/Waste | Lost 3 allies 3879 | -6/Waste | Discovered new exit (range 19) 3885 | -6/Waste | Identified exit to Factory 3928 | -6/Waste | Entered Factory 3928 | -6/Factory | Accompanied by 17 allies 4241 | -6/Factory | Build established: Hacker-Sprinter 4278 | -6/Factory | First assault squad dispatched 4414 | -6/Factory | Discovered exit to Factory (range 16) 4464 | -6/Factory | Entered another Factory area 4464 | -5/Factory | Accompanied by 15 allies 4464 | -5/Factory | Evolved 2 slots: Propulsion x1, Utility x1 4535 | -5/Factory | Repaired VTOL Module 4634 | -5/Factory | Fabricated Imp. Cloaking Device (x1) 4638 | -5/Factory | Discovered new exit (range 14) 4641 | -5/Factory | Identified exit to Upper Caves 4760 | -5/Factory | Entered Upper Caves 4760 | -5/Upper Caves | Accompanied by 11 allies 4761 | -5/Upper Caves | Learned 4 Factory zone layouts 4912 | -5/Upper Caves | Learned Factory garrison access intel 4924 | -5/Upper Caves | Spotted B-75 Beast 5257 | -5/Upper Caves | Discovered new exit (range 14) 5280 | -5/Upper Caves | Identified exit to Upper Caves 5295 | -5/Upper Caves | Entered another Upper Caves area 5295 | -5/Upper Caves | Accompanied by 7 allies 5329 | -5/Upper Caves | Discovered new exit (range 10) 5349 | -5/Upper Caves | Identified exit to Factory 5373 | -5/Upper Caves | Entered Factory 5373 | -4/Factory | Accompanied by 7 allies 5373 | -4/Factory | Evolved 2 slots: Utility x1, Weapon x1 5374 | -4/Factory | Identified exit to Upper Caves 5375 | -4/Factory | Loaded intel: 4 garrison access locations 5475 | -4/Factory | Lost 4 allies 5513 | -4/Factory | Discovered new exit (range 13) 5520 | -4/Factory | Identified exit to Extension 5530 | -4/Factory | Entered Extension 5530 | -4/Extension | Accompanied by 2 allies 5650 | -4/Extension | Spotted B-86 Titan 5653 | -4/Extension | Spotted B-86 Titan 5827 | -4/Extension | Lost 4 parts (1p2n1w) 5997 | -4/Extension | Discovered new exit (range 10) 5998 | -4/Extension | Discovered new exit (range 6) 6000 | -4/Extension | Identified exit to Cetus 6001 | -4/Extension | Identified exit to Research 6004 | -4/Extension | Entered Research 6004 | -3/Research | Evolved 2 slots: Power x1, Utility x1 6020 | -3/Research | Lost 9 parts (1p5n1u2w) 6110 | -3/Research | Lost 5 parts (1p2n1u1w) 6126 | -3/Research | Core integrity fell below 50% 6163 | -3/Research | Core integrity fell below 20% 6200 | -3/Research | Lost 3 parts (1n1u1w) 6234 | -3/Research | Destroyed by G-73 Enforcer with Heavy Laser Last Messages --------------- 06169_ ALERT: Security rotation in progress. 06169_ Flexi-carbon Leg destroyed. 06169_ Penetrated by Slug. 06170_ Acquired Antigrav Array. 06204_ System corrupted: Substantial component data lost. 06207_ Acquired Lgt. Particle Reactor. 06211_ HV Slug penetrates Prototyping Station. 06215_ Slammed into S-43 Plague. 06215_ Destabilizing: Core damaged (-26). 06216_ Slammed into S-43 Plague. 06219_ Penetrated by Slug. 06221_ Hvy. Flail destroyed. 06223_ Slug penetrates Prototyping Station. 06223_ Prototyping Station disabled. 06230_ Acquired 169 matter. 06231_ Hacking Suite destroyed. 06231_ Penetrated by Slug. 06231_ Slug penetrates Wall. 06234_ Critical hit (Burn: +37). Map ----- +----------------------------------------------------+ | ????????????????????????????????????????? | | ????????????????????????????????????????? | | ????????????????????????????????????????? | | ????????????????????????????????????????? | | ????????????????????????????????????????? | | ????????????????????????????????????????? | | ????????????????????????????????????????? | | ????????????????????????????????????????? | | ????????????????????????????????????????? | | ????????????????????????????????????????? | | ????????????????????????????????????????? | | ????????????????????????????????????????? | | ????????????????????????????????????????? | | ????????????????????????????????????????? | | ????????????????????????????????????????? | | ????????????????????????????????????????? | | ????????????????????????????????????????? | | ????????????????????????????????????????? | | ????????????????????????????????????????? | | ????????????????????????????????????????? | | ?????????????????????###+##+#???????????? | | ?????????????????# ??# #???????????? | | ?????????????????# ?# #???????????? | | ?????????????????# ?# #???????????? | | ?????????????????# ?# #???????????? | | ?????????????????# ?# @[ #???????????? | | ?????????????????# ?# #???????????? | | ?????????????????# ?# gY #???????????? | | ?????????????????# ## #???????????? | | ????????????+##### ######g######???????? | | ????????????? # ! Y #???????? | | ???????????????# # #???????? | | ???????????????# # """"" #???????? | | ???????????????# + """ " #???????? | | ???????????????# # """"" #???????? | | ???????????????# [ # """"" #???????? | | ??????????####### ## #???????? | | ??????????# # ## #???????? | | ??????????# # ############???????? | | ??????????# + #??????????????????? | | ??????????# # #??????????????????? | | ??????????# # #??????????????????? | | ??????????# / #??????????????????? | | ??????????# #### #??????????????????? | | ??????????# #??# #??????????????????? | | ??????????# #??# #??????????????????? | | ??????????# #??# #??????????????????? | | ??????????# #??# #??????????????????? | | ??????????# #??# #??????????????????? | | ??????????##/####??? ???????????????????? | +----------------------------------------------------+ Best States ------------- Heat Dissipation 46 Energy Generation 25 Energy Capacity 275 Matter Stores 300 Matter Capacity 300 Sight Range 22 Robot Scan Range 14 Terrain Scan Density 10 ECM Strength 1 Jamming Range 16 Cloak Strength 3 Armor Coverage 230 Resistance: KI 20 Point Defense Rating 80 Evasion (%) 64 Melee Accuracy 8 Recoil Reduction 4 Offensive Hacking 20 Item Schematics ----------------- Imp. Cloaking Device | -6/Factory | Downloaded Robot Schematics ------------------ None Fabricated ------------ Imp. Cloaking Device | x1 | -5/Factory Alien Tech Used ----------------- None Achievements -------------- Brute Force Dangerous Findings Just What I Needed Knowing Is Half The Battle The More The Merrier True Hacker We Are Legion Challenges ------------ None Game ------ Seed BeamMetafieldSink Manual? 0 Play Time 01:35:34 Cumulative 13.3 hours Start 2024.04.18 @ 18:59:39 End 2024.04.18 @ 20:35:13 Sessions 1 Manual Loads 0 Difficulty Rogue Special Mode None Game No. 11 Rogue 11 Adventurer 0 Explorer 0 Win Type - Total 0 Types 0/0/0/0/0/0/0/0/0 Lore% 17 Gallery% 18 Achievement% 17 Wizard Run 0 Options --------- Layout 1 ASCII 0 Keyboard 0 Movement Mouse Keybinds 0 Fullscreen 1 Font 24/Smallcaps Map View 50x35 Zoom Use 0% Tactical HUD 1 Map Filters NONE Filters NONE Steam 1 RUN: 8bee6bfc-3651-46a2-ad27-203307f8f7cf